Cogmind - Beta 13 @@@ ROGUE MODE // 2024.07.15 @ 22:54:18 Player: Drone Result: Destroyed by G-47 Trooper with Particle Gun Performance ------------- Evolutions (0) 0 Regions Visited (1) 200 Robots Destroyed (9) 45 Value Destroyed (107) 107 Prototype IDs (0) 0 Alien Tech Used (0) 0 Bonus (0) 0 TOTAL SCORE: 352 Bonus ------- None Cogmind --------- Core Integrity 0/250 Matter 215/300 Energy 100/100 System Corruption 0% Temperature Cool (9) Movement Core (700) Ox13 Location -10/Materials Parts ------- > --- POWER (1) -------- (None) > --- PROPULSION (2) --- (None) > --- UTILITY (2) ------ High-capacity Storage Unit > --- WEAPON (2) ------- Light Assault Rifle > --- INVENTORY (20) --- Aluminum Leg Wheel Heat Sink Large Storage Unit Large Battery (200) Visual Processing Unit Sensor Array Sensor Array Signal Interpreter ECM Suite ECM Suite Peak State ------------ > --- POWER ------------ Ion Engine > --- PROPULSION ------- Wheel Wheel > --- UTILITY ---------- Heat Sink High-capacity Storage Unit > --- WEAPON ----------- Assault Rifle Light Assault Rifle > --- INVENTORY -------- Aluminum Leg Aluminum Leg Large Storage Unit Large Battery Sensor Array Sensor Array ECM Suite ECM Suite Small Laser Small Laser [Rating: 8] Favorites ----------- Power Ion Engine Engine Ion Engine Propulsion Wheel Leg Aluminum Leg Wheel Wheel Utility High-capacity Storage Unit Device Heat Sink Storage High-capacity Storage Unit Weapon Light Assault Rifle Energy Gun Small Laser Ballistic Gun Light Assault Rifle Build | -11 -10 ------- Run | Yrd Mat Slots Evolved . | . . Power . | . . Propulsion . | . . Utility . | . . Weapon . | . . Parts Attached 15 | 7 8 Power 3 | 2 1 Engine 3 | 2 1 Core . | . . Reactor . | . . Propulsion 3 | 2 1 Treads . | . . Leg 1 | . 1 Wheel 2 | 2 . Hover . | . . Flight . | . . Utility 3 | 1 2 Device 2 | 1 1 Storage 1 | . 1 Processor . | . . Hackware . | . . Protection . | . . Artifact . | . . Weapon 6 | 2 4 Energy Gun 2 | . 2 Energy Cannon . | . . Ballistic Gun 4 | 2 2 Ballistic Cannon . | . . Launcher . | . . Special Weapon . | . . Impact Weapon . | . . Slashing Weapon . | . . Piercing Weapon . | . . Special Melee Weapon . | . . Unidentified Prototypes . | . . Parts Lost 5 | . 5 Power 1 | . 1 Propulsion 1 | . 1 Utility . | . . Weapon 3 | . 3 Highest Loss Streak 5 | . 5 To Critical Strikes . | . . Average Slot Usage (%) 71 | . 71 Engine 7 | . 7 Leg 1 | . 1 Wheel 16 | . 16 Device 8 | . 8 Storage 13 | . 13 Energy Gun 5 | . 5 Ballistic Gun 17 | . 17 Naked Turns . | . . Heaviest Build 49 | 9 49 Greatest Support 20 | 20 20 Greatest Overweight (x) 13 | . 13 Average Overweight (x) 1 | . 2 Largest Inventory Capacity 20 | 5 20 Average Capacity 14 | 5 19 Most Carried 16 | 5 16 Average Carried 7 | 2 10 Final Capacity 20 | 5 20 Final Carried 11 | 5 11 Class Distribution -------------------- 100% | Mutant Dominant Class ---------------- Mutant | -10/Materials Resources | -11 -10 ----------- Run | Yrd Mat Matter Collected 282 | 282 . Remotely . | . . Salvage Created 223 | 52 171 Parts 23 | 7 16 Haulers Intercepted . | . . Recyclers Shooed . | . . Parts Field Recycled . | . . Retrieved Matter . | . . Parts Self-Destructed . | . . Prevented . | . . Kills | -11 -10 ------- Run | Yrd Mat Combat Hostiles Destroyed 6 | 1 5 Guns 6 | 1 5 Classes Destroyed 5 | 2 3 Worker 1 | 1 . Recycler 1 | . 1 Watcher 1 | . 1 Swarmer 5 | . 5 Grunt 1 | 1 . Best Kill Streak 5 | 1 5 Combat Bots Only 5 | 1 5 Max Kills in Single Turn 1 | 1 1 Gunslinging . | . . Exploded . | . . Melee . | . . Uniques/NPCs Destroyed . | . . Combat | -11 -10 -------- Run | Yrd Mat Hostile Shots Fired 104 | 3 101 Missed 33 | 1 32 Damage Taken 667 | 23 644 Core 254 | 11 243 Absorbed by Shields . | . . Core Remaining (%) 95 | 95 . Volleys Fired 29 | 3 26 Largest 2 | 2 2 Hottest 80 | 40 80 Shots Fired 44 | 6 38 Gun 44 | 6 38 Cannon . | . . Launcher . | . . Special . | . . Kinetic 28 | 6 22 Thermal 16 | . 16 Explosive . | . . Electromagnetic . | . . Robot Hit Streak 5 | 2 5 Robot Miss Streak 5 | 1 5 Penetration Max . | . . Secondary Targets . | . . Shots Hit Robots 26 | 3 23 Core Hits 14 | 3 11 Critical Kills . | . . Critical Parts Destroyed . | . . Critical Strikes . | . . Melee Attacks . | . . Impact . | . . Slashing . | . . Piercing . | . . Sneak Attacks . | . . Combat Hostiles . | . . Follow-up Attacks . | . . Damage Inflicted 283 | 39 244 Guns 283 | 39 244 Cannons . | . . Explosions . | . . Melee . | . . Ramming . | . . Kinetic 135 | 39 96 Thermal 148 | . 148 Explosive . | . . Electromagnetic . | . . Impact . | . . Slashing . | . . Piercing . | . . Highest Corruption . | . . Average Corruption . | . . Corruption Purged . | . . Corruption Blocked . | . . Overload Shots . | . . Overflow Damage . | . . Projectiles . | . . Explosions . | . . Melee . | . . Knockbacks . | . . Impact . | . . Kinetic . | . . Secondary . | . . Self-Inflicted Damage . | . . Shots . | . . Rammed . | . . Targets Rammed . | . . Kicked . | . . Crushed . | . . Highest Temperature 59 | 6 59 Average Temperature 17 | 6 17 Received Heat Transfer 162 | 12 150 Siege Activations . | . . Robots Corrupted . | . . Combat Hostiles . | . . Parts Fried . | . . Impact Corruptions . | . . Robots Melted . | . . Combat Hostiles . | . . Parts Melted 1 | . 1 Heat Transferred 325 | . 325 Parts Sabotaged . | . . Parts Stolen . | . . Parts Stripped . | . . Power Chain Reactions . | . . Alert | -11 -10 ------- Run | Yrd Mat Peak Influence 108 | 25 108 Initial 16 | . 16 Average 24 | 15 30 Maximum Alert Level . | . . Low Security (%) 100 | 100 100 Level 1 . | . . Level 2 . | . . Level 3 . | . . Level 4 . | . . Level 5 . | . . High Security . | . . Max Security . | . . Squads Dispatched . | . . Investigation . | . . Extermination . | . . Reinforcement . | . . Assault . | . . Garrison . | . . Intercept . | . . Searches Triggered . | . . Construction Impeded . | . . Haulers Reinforced . | . . Active Scanning Responses . | . . Cargo Convoy Interrupts . | . . Stealth | -11 -10 --------- Run | Yrd Mat Distress Signals 1 | . 1 Communications Jammed . | . . Distress Signals . | . . Times Spotted 11 | 1 10 Peak Tracking Total 9 | 1 9 Tactical Retreats . | . . Traps | -11 -10 ------- Run | Yrd Mat Traps Triggered 3 | . 3 Indirectly . | . . Trap Hack Attempts . | . . Triggered . | . . Disarmed . | . . Reprogrammed . | . . Reused . | . . Traps Extracted . | . . Installed . | . . Triggered . | . . Machines | -11 -10 ---------- Run | Yrd Mat Machines Disabled . | . . Max in Single Turn . | . . Machines Repaired . | . . Machines Dismantled . | . . Machines Sabotaged . | . . Overloaded Fab Kills . | . . Hacking | -11 -10 --------- Run | Yrd Mat Machines Accessed . | . . Terminals . | . . Fabricators . | . . Repair Stations . | . . Recycling Units . | . . Scanalyzers . | . . Garrison Access . | . . Total Hacks . | . . Successful . | . . Failed . | . . Catastrophic . | . . Database Lockouts . | . . Manual . | . . Terminals . | . . Fabricators . | . . Repair Stations . | . . Recycling Units . | . . Scanalyzers . | . . Garrison Access . | . . Terminal Hacks . | . . Fabricator Hacks . | . . Repair Station Hacks . | . . Recycling Unit Hacks . | . . Scanalyzer . | . . Garrison Access Hacks . | . . Unauthorized Hacks . | . . Terminals . | . . Fabricators . | . . Repair Stations . | . . Recycling Units . | . . Scanalyzers . | . . Garrison Access . | . . Data Cores Recovered . | . . Used . | . . Hacking Detections . | . . Full Trace Events . | . . Feedback Events . | . . Feedback Blocked . | . . Robot Schematics Acquired . | . . Robots Built . | . . Authchips . | . . Time . | . . Total Robot Build Rating . | . . Part Schematics Acquired . | . . Parts Built . | . . Authchips . | . . Time . | . . Total Part Build Rating . | . . Parts Repaired . | . . Time . | . . Parts Recycled . | . . Recycled Matter . | . . Retrieved Matter . | . . Retrieved Components . | . . Parts Scanalyzed . | . . Part Schematics Acquired . | . . Parts Damaged . | . . Bothacking | -11 -10 ------------ Run | Yrd Mat Used RIF Installer . | . . Robots Hacked . | . . Non-combat . | . . Combat . | . . Robot Hacks Applied . | . . Relay Couplers Released . | . . Fabnet Peak Effective % . | . . Robots Rewired . | . . Allies Hacked . | . . Hacks Repelled . | . . Allies | -11 -10 -------- Run | Yrd Mat Total Allies . | . . Largest Group . | . . Highest-Rated Group . | . . Highest-Rated Ally . | . . Total Orders . | . . Ally Attacks . | . . Total Damage . | . . Kills . | . . Allies Corrupted . | . . Allies Melted . | . . Intel | -11 -10 ------- Run | Yrd Mat Robot Analysis Total . | . . Derelict Logs Recovered . | . . Drone Launches . | . . Drone Recoveries . | . . Exploration | -11 -10 ------------- Run | Yrd Mat Turns Passed 476 | 177 299 Spaces Moved 291 | 144 147 Core 26 | 17 9 Treads . | . . Legs 1 | . 1 Wheels 264 | 127 137 Hover . | . . Flight . | . . Fastest Speed 50 | 50 80 Average Speed 111 | 76 146 Slowest Speed 700 | 80 700 Overloaded Moves . | . . Propulsion Burnouts . | . . Robots Hopped . | . . Cave-ins Triggered . | . . Exploration Rate (%) 21 | 9 33 Regions Visited 1 Branch Regions . Pre-discovered Areas . | . . Known Exits Taken . | . . Unknown Exits Taken 1 | 1 . Scrap Searched . | . . Spaces Dug . | . . Terrain Destroyed . | . . Melee . | . . Projectile . | . . AOE . | . . Terrain Rammed . | . . Walls Destroyed . | . . Machines Disabled . | . . Actions | -11 -10 --------- Run | Yrd Mat Total 400 | 204 196 Wait 40 | 40 . Move 290 | 143 147 Hop . | . . Pick Up 25 | 11 14 Fast Attach . | . . Attach 13 | 6 7 Detach . | . . Swap 2 | 1 1 Drop 1 | . 1 Fire 29 | 3 26 Melee . | . . Ram . | . . Kick . | . . Crush . | . . Escape Stasis . | . . Rewire . | . . Trap . | . . Miscellaneous . | . . Route ------- -11/Scrapyard -10/Materials (discovered 1 exit: [*Min]) History --------- Turn | Location | Event 2 | -11/Scrapyard | Met Revision 17 49 | -11/Scrapyard | Discovered new exit (range 8) 178 | -11/Scrapyard | Entered Materials 257 | -10/Materials | Discovered new exit (range 15) 325 | -10/Materials | Build established: Mutant 444 | -10/Materials | Core integrity fell below 50% 468 | -10/Materials | Core integrity fell below 20% 477 | -10/Materials | Destroyed by G-47 Trooper with Particle Gun Last Messages --------------- 00438_ Lgt. Ion Engine melted. 00438_ S-10 Pest destroyed. 00441_ Sml. Laser destroyed. 00448_ K-01 Serf collects debris. 00451_ S-10 Pest destroyed. 00452_ K-01 Serf collects debris. 00453_ S-10 Pest destroyed. 00454_ K-01 Serf collects debris. 00459_ G-34 Mercenary destroyed. 00459_ K-01 Serf collects debris. 00459_ Acquired Lgt. Assault Rifle. 00461_ Lgt. Assault Rifle destroyed. 00461_ K-01 Serf collects debris. 00469_ K-01 Serf suffers critical hit (Burn). 00470_ M-13 Machinist repairs W-16 Scout. 00471_ K-01 Serf collects debris. 00473_ M-13 Machinist repairs Hover Unit. 00474_ K-01 Serf collects debris. 00475_ Aluminum Leg destroyed. 00476_ K-01 Serf collects debris. Map ----- +----------------------------------------------------+ | ???????????????# * ! | | ???????????????#! "" ## | | ???????????????#! "" #? | | ???????????????##! ^ T" #? | | ????????????????#### ! "" ## | | ?????????????????#"" !! "" | | ?????????????????#"Y !! """ ^ | | ?????????????????#"" ^ """ | | ?????????????????### ^ """ ## | | ??????????????????# ##? | | ??????????????????# #?? | | ??????????????????# #?? | | ??????????????????# #?? | | ??????????????????# ## #?? | | ??????????????#######+######### # """ | | ??????????????# #?# # " | | ??????????????# #?# # !" | | ??????????????# " """"" / # < "" | | ??????????????# """"""""" #?# # |" | | ??????????????# """ """ #?# # " | | ??????????????# == #?# # """ | | ????###+##????#####+#########?# ## ##? | | ????# ####### %* ######### ?? #?? | | ????# w m[ k k[%[g ? ???? | | ????# %[%= ===*= ?????? | | ????# =@% s[%= ?????? | | ????# ####### ############??????? | | ????## #??????#######?????????????????? | | ?????# ???????????????????????????????? | | ?????# ????????????????????????????????? | | ?????# ????????????????????????????????? | | ?????# ?????????????????????????????????? | | ?????# ?????????????????????????????????? | | ?????#??????????????????????????????????? | | ????????????????????????????????????????? | | ????????????????????????????????????????? | | ????????????????????????????????????????? | | ????????????????????????????????????????? | | ????????????????????????????????????????? | | ????????????????????????????????????????? | | ????????????????????????????????????????? | | ????????????????????????????????????????? | | ????????????????????????????????????????? | | ????????????????????????????????????????? | | ????????????????????????????????????????? | | ????????????????????????????????????????? | | ????????????????????????????????????????? | | ????????????????????????????????????????? | | ????????????????????????????????????????? | | ????????????????????????????????????????? | +----------------------------------------------------+ Best States ------------- Heat Dissipation 35 Energy Generation 10 Energy Capacity 250 Matter Stores 300 Matter Capacity 300 Sight Range 16 Robot Scan Range 14 Terrain Scan Density 10 Evasion (%) 50 Item Schematics ----------------- None Robot Schematics ------------------ None Fabricated ------------ Nothing Alien Tech Used ----------------- None Achievements -------------- Storm Trooper Challenges ------------ None Game ------ Seed WeightSalvageDerivative Manual? 0 Play Time 00:13:36 Cumulative 1.9 hours Start 2024.07.15 @ 22:43:52 End 2024.07.15 @ 22:54:18 Sessions 1 Manual Loads 0 Difficulty Rogue Special Mode None Game No. 2 Rogue 1 Adventurer 0 Explorer 1 Win Type - Total 0 Types 0/0/0/0/0/0/0/0/0 Lore% 11 Gallery% 4 Achievement% 7 Wizard Run 0 Options --------- Layout 0 ASCII 0 Keyboard 0 Movement Mouse Keybinds 0 Fullscreen 1 Font 24/Smallcaps Map View 113x50 Zoom Use 0% Tactical HUD 1 Map Filters NONE Filters NONE Steam 1 RUN: 9763e4ba-3b7a-44cf-8044-5809cb3323e5